[Event "Polgar Challenge 2021"]
[Site "Online"]
[Date "2021.04.04"]
[Round "18.6"]
[White "Salimova, Nurgyul"]
[Black "Abdumalik, Zhansaya"]
[Result "1-0"]
[ECO "D02"]
[WhiteElo "2397"]
[BlackElo "2472"]
[Annotator "ChessBase"]
[PlyCount "79"]
[EventDate "2021.04.08"]
[EventType "tourn"]
[EventCountry "NET"]
[SourceTitle "playchess.com"]
[Source "ChessBase"]
[SourceQuality "1"]
[TimeControl "600+5"]

1. d4 {[%emt 0:00:00]} Nf6 {[%emt 0:00:00]} 2. Nf3 {[%emt 0:00:00]} g6 {[%emt 0:00:00]} 3. Nbd2 {[%emt 0:00:01]} d5 {[%emt 0:00:00]} 4. e3 {[%emt 0:00:17]} Bg7 {[%emt 0:00:03]} 5. b4 {[%emt 0:00:14]} a5 {[%emt 0:00:22]} 6. b5 {[%emt 0:00:08]} c5 {[%emt 0:00:18]} 7. bxc6 {[%emt 0:00:29]} Nxc6 {[%emt 0:01:10]} 8. Be2 {[%emt 0:01:29]} O-O {[%emt 0:00:24]} 9. O-O {[%emt 0:00:09]} Bf5 {[%emt 0:00:05]} 10. a3 {[%emt 0:01:12]} Rc8 {[%emt 0:00:18]} 11. c4 {[%emt 0:00:48]} Re8 {[%emt 0:01:29]} 12. Bb2 {[%emt 0:00:26]} Qb6 {[%emt 0:00:22]} 13. Ra2 {[%emt 0:00:29]} dxc4 {[%emt 0:00:50]} 14. Bxc4 {[%emt 0:00:40]} h6 {[%emt 0:00:27]} 15. d5 {[%emt 0:01:13]} Nb8 {[%emt 0:00:05]} 16. Bd4 {[%emt 0:00:07]} Qd8 {[%emt 0:01:12]} 17. Qb3 {[%emt 0:00:18]} Ne4 {[%emt 0:00:09]} 18. Bxg7 {[%emt 0:00:26]} Kxg7 {[%emt 0:00:13]} 19. Nd4 {[%emt 0:00:17]} Nc5 {[%emt 0:01:03]} 20. Nxf5+ {[%emt 0:00:04]} gxf5 {[%emt 0:00:01]} 21. Qb2+ {[%emt 0:00:08]} f6 {[%emt 0:00:12]} 22. Nf3 {[%emt 0:00:37]} Rg8 {[%emt 0:00:56]} 23. Nd4 {[%emt 0:00:09]} Qd7 {[%emt 0:00:01]} 24. Qb1 {[%emt 0:00:34]} Ne4 {[%emt 0:00:08]} 25. Rc2 {[%emt 0:00:14]} Na6 {[%emt 0:00:28]} 26. Rfc1 {[%emt 0:00:24]} Nac5 {[%emt 0:00:13]} 27. Bb5 {[%emt 0:00:18]} Qxd5 {[%emt 0:00:21]} 28. f3 {[%emt 0:00:26]} Ng5 {[%emt 0:00:12]} 29. Bc4 {[%emt 0:00:26]} Qe5 {[%emt 0:00:04]} 30. Re2 {[%emt 0:00:04]} Nge6 {[%emt 0:00:28]} 31. f4 {[%emt 0:00:16]} Nxf4 {[%emt 0:00:36]} 32. Nxf5+ {[%emt 0:00:01]} Kh8 {[%emt 0:00:18]} 33. exf4 {[%emt 0:00:03]} Qxf4 {[%emt 0:00:00]} 34. Bxg8 {[%emt 0:00:02]} Rxg8 {[%emt 0:00:09]} 35. Rxc5 {[%emt 0:00:04]} e6 {[%emt 0:00:01]} 36. Qf1 {[%emt 0:00:08]} Qg4 {[%emt 0:00:07]} 37. Nxh6 {[%emt 0:00:07]} Qd4+ {[%emt 0:00:01]} 38. Kh1 {[%emt 0:00:05]} Rg6 {[%emt 0:00:01]} 39. Rc8+ {[%emt 0:00:10]} Kg7 {[%emt 0:00:04]} 40. Rg8+ {[%emt 0:00:03]} 1-0

[Event "Polgar Challenge 2021"]
[Site "Online"]
[Date "2021.04.04"]
[Round "18.8"]
[White "Liang, Awonder"]
[Black "Keymer, Vincent"]
[Result "0-1"]
[ECO "B17"]
[WhiteElo "2592"]
[BlackElo "2591"]
[Annotator "ChessBase"]
[PlyCount "98"]
[EventDate "2021.04.08"]
[EventType "tourn"]
[EventCountry "NET"]
[SourceTitle "playchess.com"]
[Source "ChessBase"]
[SourceQuality "1"]
[TimeControl "600+5"]

1. e4 {[%emt 0:00:00]} c6 {[%emt 0:00:00]} 2. Nc3 {[%emt 0:00:00]} d5 {[%emt 0:00:00]} 3. Nf3 {[%emt 0:00:00]} dxe4 {[%emt 0:00:00]} 4. Nxe4 {[%emt 0:00:00]} Nf6 {[%emt 0:00:00]} 5. Ng3 {[%emt 0:00:01]} g6 {[%emt 0:00:06]} 6. d4 {[%emt 0:00:02]} Bg7 {[%emt 0:00:01]} 7. Bc4 {[%emt 0:01:02]} O-O {[%emt 0:00:05]} 8. O-O {[%emt 0:00:01]} Nbd7 {[%emt 0:00:28]} 9. Re1 {[%emt 0:00:03]} Nb6 {[%emt 0:00:35]} 10. Bb3 {[%emt 0:00:02]} a5 {[%emt 0:00:07]} 11. c3 {[%emt 0:00:30]} a4 {[%emt 0:00:59]} 12. Bc2 {[%emt 0:00:02]} Bg4 {[%emt 0:00:13]} 13. h3 {[%emt 0:00:04]} Bxf3 {[%emt 0:00:14]} 14. Qxf3 {[%emt 0:00:01]} Re8 {[%emt 0:00:06]} 15. Bf4 {[%emt 0:00:25]} Ra5 {[%emt 0:01:30]} 16. Rad1 {[%emt 0:00:13]} Nc4 {[%emt 0:00:26]} 17. b3 {[%emt 0:00:30]} axb3 {[%emt 0:00:04]} 18. axb3 {[%emt 0:00:19]} Nb6 {[%emt 0:00:01]} 19. Ne4 {[%emt 0:01:17]} Nxe4 {[%emt 0:00:11]} 20. Bxe4 {[%emt 0:00:02]} Ra3 {[%emt 0:00:14]} 21. Bc2 {[%emt 0:01:42]} e6 {[%emt 0:00:27]} 22. Be5 {[%emt 0:00:11]} Nd5 {[%emt 0:00:34]} 23. Bxg7 {[%emt 0:00:19]} Kxg7 {[%emt 0:00:04]} 24. c4 {[%emt 0:00:01]} Nf6 {[%emt 0:00:12]} 25. Qc3 {[%emt 0:00:09]} Qa5 {[%emt 0:00:11]} 26. Qg3 {[%emt 0:00:36]} Ra2 {[%emt 0:00:37]} 27. Bb1 {[%emt 0:00:06]} Rd2 {[%emt 0:00:23]} 28. Qe5 {[%emt 0:00:19]} Qc3 {[%emt 0:00:38]} 29. Rxd2 {[%emt 0:00:39]} Qxd2 {[%emt 0:00:00]} 30. Re3 {[%emt 0:00:12]} Qd1+ {[%emt 0:01:03]} 31. Kh2 {[%emt 0:00:02]} Qh5 {[%emt 0:00:03]} 32. Qg3 {[%emt 0:00:30]} Rd8 {[%emt 0:00:16]} 33. Qf4 {[%emt 0:00:19]} Qh6 {[%emt 0:00:13]} 34. Qe5 {[%emt 0:00:23]} Qh5 {[%emt 0:00:26]} 35. Qf4 {[%emt 0:00:05]} Qd1 {[%emt 0:00:14]} 36. Bd3 {[%emt 0:00:05]} Qa1 {[%emt 0:00:05]} 37. d5 {[%emt 0:00:54]} cxd5 {[%emt 0:00:03]} 38. c5 {[%emt 0:00:01]} Qa7 {[%emt 0:00:11]} 39. Qd4 {[%emt 0:00:17]} Qb8+ {[%emt 0:00:07]} 40. f4 {[%emt 0:00:06]} h6 {[%emt 0:01:25]} 41. g4 {[%emt 0:00:12]} g5 {[%emt 0:00:29]} 42. Re5 {[%emt 0:00:02]} Kg8 {[%emt 0:00:11]} 43. Re2 {[%emt 0:00:49]} Qxf4+ {[%emt 0:00:05]} 44. Qxf4 {[%emt 0:00:01]} gxf4 {[%emt 0:00:00]} 45. Ra2 {[%emt 0:00:03]} Nd7 {[%emt 0:00:09]} 46. b4 {[%emt 0:00:02]} b6 {[%emt 0:00:06]} 47. c6 {[%emt 0:00:15]} Ne5 {[%emt 0:00:01]} 48. Bb5 {[%emt 0:00:03]} Rc8 {[%emt 0:00:01]} 49. Rc2 {[%emt 0:00:08]} Nf3+ {[%emt 0:00:03]} 0-1

[Event "Polgar Challenge 2021"]
[Site "Online"]
[Date "2021.04.04"]
[Round "18.9"]
[White "Yoo, Christopher Woojin"]
[Black "Gukesh D"]
[Result "0-1"]
[ECO "D38"]
[WhiteElo "2455"]
[BlackElo "2578"]
[Annotator "ChessBase"]
[PlyCount "114"]
[EventDate "2021.04.08"]
[EventType "tourn"]
[EventCountry "NET"]
[SourceTitle "playchess.com"]
[Source "ChessBase"]
[SourceQuality "1"]
[TimeControl "600+5"]

1. d4 {[%emt 0:00:00]} Nf6 {[%emt 0:00:00]} 2. Nf3 {[%emt 0:00:00]} d5 {[%emt 0:00:16]} 3. c4 {[%emt 0:00:02]} e6 {[%emt 0:00:03]} 4. Nc3 {[%emt 0:00:02]} Bb4 {[%emt 0:00:42]} 5. Qb3 {[%emt 0:00:30]} c5 {[%emt 0:00:23]} 6. dxc5 {[%emt 0:00:05]} Nc6 {[%emt 0:00:19]} 7. Bg5 {[%emt 0:00:03]} O-O {[%emt 0:01:12]} 8. e3 {[%emt 0:01:00]} h6 {[%emt 0:00:29]} 9. Bxf6 {[%emt 0:00:07]} Qxf6 {[%emt 0:00:01]} 10. cxd5 {[%emt 0:00:18]} exd5 {[%emt 0:00:04]} 11. Bb5 {[%emt 0:00:06]} d4 {[%emt 0:02:02]} 12. Bxc6 {[%emt 0:00:29]} dxc3 {[%emt 0:00:02]} 13. Qxb4 {[%emt 0:00:03]} cxb2 {[%emt 0:00:02]} 14. Rb1 {[%emt 0:00:01]} bxc6 {[%emt 0:00:49]} 15. O-O {[%emt 0:00:19]} Ba6 {[%emt 0:00:29]} 16. Rfe1 {[%emt 0:00:04]} Rab8 {[%emt 0:00:33]} 17. Qa3 {[%emt 0:00:06]} Bc4 {[%emt 0:00:37]} 18. Nd4 {[%emt 0:00:04]} Qg5 {[%emt 0:00:17]} 19. Rxb2 {[%emt 0:00:35]} Rxb2 {[%emt 0:00:02]} 20. Qxb2 {[%emt 0:00:00]} Qxc5 {[%emt 0:00:44]} 21. Qc3 {[%emt 0:00:20]} Rb8 {[%emt 0:00:41]} 22. a3 {[%emt 0:00:15]} f6 {[%emt 0:00:37]} 23. e4 {[%emt 0:01:49]} Re8 {[%emt 0:00:06]} 24. h3 {[%emt 0:00:35]} Kh8 {[%emt 0:01:02]} 25. Nf5 {[%emt 0:00:43]} Rd8 {[%emt 0:00:24]} 26. Ne3 {[%emt 0:00:15]} Rd4 {[%emt 0:00:07]} 27. Rc1 {[%emt 0:00:03]} Qe5 {[%emt 0:00:01]} 28. Nxc4 {[%emt 0:00:07]} Rd1+ {[%emt 0:00:01]} 29. Rxd1 {[%emt 0:00:32]} Qxc3 {[%emt 0:00:01]} 30. Ne3 {[%emt 0:00:06]} Qxa3 {[%emt 0:00:09]} 31. Nf5 {[%emt 0:00:13]} Qa5 {[%emt 0:00:07]} 32. Nd6 {[%emt 0:01:26]} Kg8 {[%emt 0:00:04]} 33. h4 {[%emt 0:00:10]} Qa4 {[%emt 0:00:06]} 34. Rc1 {[%emt 0:00:26]} h5 {[%emt 0:00:07]} 35. g3 {[%emt 0:00:18]} a5 {[%emt 0:00:02]} 36. Kg2 {[%emt 0:00:07]} Qd4 {[%emt 0:00:03]} 37. Rxc6 {[%emt 0:00:03]} a4 {[%emt 0:00:01]} 38. Ra6 {[%emt 0:00:49]} a3 {[%emt 0:00:08]} 39. Rxa3 {[%emt 0:00:37]} Qxd6 {[%emt 0:00:01]} 40. Re3 {[%emt 0:00:04]} Qe5 {[%emt 0:00:05]} 41. Kg1 {[%emt 0:00:09]} Kh7 {[%emt 0:00:02]} 42. Kg2 {[%emt 0:00:02]} Kg6 {[%emt 0:00:02]} 43. Kg1 {[%emt 0:00:01]} Kf7 {[%emt 0:00:06]} 44. Kg2 {[%emt 0:00:01]} Ke6 {[%emt 0:00:02]} 45. Kg1 {[%emt 0:00:10]} Qd4 {[%emt 0:00:02]} 46. Kg2 {[%emt 0:00:02]} Ke5 {[%emt 0:00:05]} 47. Kg1 {[%emt 0:00:04]} Qd1+ {[%emt 0:00:10]} 48. Kg2 {[%emt 0:00:02]} Kd4 {[%emt 0:00:02]} 49. e5 {[%emt 0:00:05]} fxe5 {[%emt 0:00:02]} 50. Rf3 {[%emt 0:00:08]} Qc2 {[%emt 0:00:11]} 51. Rf7 {[%emt 0:00:08]} Qc6+ {[%emt 0:00:02]} 52. Kg1 {[%emt 0:00:08]} g6 {[%emt 0:00:02]} 53. Kh2 {[%emt 0:00:04]} Kd3 {[%emt 0:00:02]} 54. Kg1 {[%emt 0:00:04]} Ke2 {[%emt 0:00:04]} 55. Rf8 {[%emt 0:00:05]} Qc1+ {[%emt 0:00:03]} 56. Kh2 {[%emt 0:00:02]} Qc5 {[%emt 0:00:04]} 57. Kg2 {[%emt 0:00:04]} Qxf8 {[%emt 0:00:03]} 0-1

[Event "Polgar Challenge 2021"]
[Site "Online"]
[Date "2021.04.04"]
[Round "18.10"]
[White "Shuvalova, Polina"]
[Black "Bjerre, Jonas Buhl"]
[Result "0-1"]
[ECO "D38"]
[WhiteElo "2476"]
[BlackElo "2550"]
[Annotator "RC"]
[PlyCount "176"]
[EventDate "2021.04.08"]
[EventType "tourn"]
[EventCountry "NET"]
[SourceTitle "playchess.com"]
[Source "ChessBase"]
[SourceQuality "1"]
[TimeControl "600+5"]

1. d4 {[%emt 0:00:00]} Nf6 {[%emt 0:00:00]} 2. c4 {[%emt 0:00:00]} e6 {[%emt 0:00:00]} 3. Nf3 {[%emt 0:00:00]} d5 {[%emt 0:00:00]} 4. Nc3 {[%emt 0:00:02]} Bb4 {[%emt 0:00:06]} 5. Qb3 {[%emt 0:00:06]} c5 {[%emt 0:00:27]} 6. dxc5 {[%emt 0:00:09]} Nc6 {[%emt 0:00:23]} 7. Bg5 {[%emt 0:00:19]} Qa5 {[%emt 0:00:22]} 8. Bxf6 {[%emt 0:00:14]} dxc4 {[%emt 0:00:05]} 9. Qxc4 {[%emt 0:00:01]} gxf6 {[%emt 0:00:01]} 10. g3 {[%emt 0:01:23]} Qxc5 {[%emt 0:01:35]} 11. Qxc5 {[%emt 0:00:11]} Bxc5 {[%emt 0:00:02]} 12. Bg2 {[%emt 0:00:01]} Bd7 {[%emt 0:00:31]} 13. O-O {[%emt 0:00:09]} O-O-O {[%emt 0:00:25]} 14. Rac1 {[%emt 0:00:15]} Be7 {[%emt 0:00:17]} 15. Rfd1 {[%emt 0:00:02]} Kb8 {[%emt 0:00:12]} 16. a3 {[%emt 0:00:47]} f5 {[%emt 0:00:38]} 17. e3 {[%emt 0:00:08]} Bc8 {[%emt 0:00:21]} 18. h4 {[%emt 0:00:46]} h6 {[%emt 0:00:24]} 19. Nb5 {[%emt 0:00:58]} a6 {[%emt 0:01:03]} 20. Nbd4 {[%emt 0:00:06]} Nxd4 {[%emt 0:00:06]} 21. exd4 {[%emt 0:00:05]} f4 {[%emt 0:00:50]} 22. gxf4 {[%emt 0:01:53]} Rhg8 {[%emt 0:00:08]} 23. Ne5 {[%emt 0:00:56]} f6 {[%emt 0:00:19]} 24. Nc4 {[%emt 0:00:09]} Bd7 {[%emt 0:01:21]} 25. Ne3 {[%emt 0:00:37]} Bd6 {[%emt 0:00:26]} 26. f5 {[%emt 0:00:35]} exf5 {[%emt 0:00:18]} 27. Nc4 {[%emt 0:00:32]} Bf4 {[%emt 0:00:11]} 28. Rc3 {[%emt 0:00:41]} Ba4 {[%emt 0:00:32]} 29. Rdd3 {[%emt 0:00:22]} Bc6 {[%emt 0:00:21]} 30. f3 {[%emt 0:00:01]} Rg7 {[%emt 0:00:09]} 31. Kf1 {[%emt 0:00:12]} Rgd7 {[%emt 0:00:22]} 32. Bh3 {[%emt 0:00:08]} Rxd4 {[%emt 0:00:10]} 33. Rxd4 {[%emt 0:00:08]} Rxd4 {[%emt 0:00:03]} 34. Bxf5 {[%emt 0:00:01]} Bc7 {[%emt 0:00:14]} 35. h5 {[%emt 0:00:12]} Rf4 {[%emt 0:00:05]} 36. Bg4 {[%emt 0:00:11]} f5 {[%emt 0:00:06]} 37. Bh3 {[%emt 0:00:01]} Bxf3 {[%emt 0:00:02]} 38. Ke1 {[%emt 0:00:13]} Bxh5 {[%emt 0:00:03]} 39. Ne3 {[%emt 0:00:06]} Be5 {[%emt 0:00:07]} 40. Rb3 {[%emt 0:00:06]} Bf7 {[%emt 0:00:13]} 41. Rd3 {[%emt 0:00:02]} Bxb2 {[%emt 0:00:07]} 42. Nxf5 {[%emt 0:00:02]} Be6 {[%emt 0:00:10]} 43. Nd6 {[%emt 0:00:28]} Bxh3 {[%emt 0:00:03]} 44. Rxh3 {[%emt 0:00:00]} Rf6 {[%emt 0:00:06]} 45. Nc4 {[%emt 0:00:03]} Bd4 {[%emt 0:00:02]} 46. Kd2 {[%emt 0:00:03]} b5 {[%emt 0:00:04]} 47. Na5 {[%emt 0:00:01]} Bc5 {[%emt 0:00:04]} 48. Kc2 {[%emt 0:00:05]} Bb6 {[%emt 0:00:06]} 49. Nb3 {[%emt 0:00:02]} Rc6+ {[%emt 0:00:03]} 50. Kb2 {[%emt 0:00:03]} Re6 {[%emt 0:00:02]} 51. Nc1 {[%emt 0:00:05]} Bd4+ {[%emt 0:00:07]} 52. Ka2 {[%emt 0:00:06]} Kb7 {[%emt 0:00:06]} 53. a4 {[%emt 0:00:10]} b4 {[%emt 0:00:08]} 54. Rh4 {[%emt 0:00:09]} Bc3 {[%emt 0:00:11]} 55. Nd3 {[%emt 0:00:04]} Rd6 {[%emt 0:00:05]} 56. Nc5+ {[%emt 0:00:20]} Kb6 {[%emt 0:00:05]} 57. Ne4 {[%emt 0:00:02]} Rc6 {[%emt 0:00:02]} 58. Kb3 {[%emt 0:00:02]} a5 {[%emt 0:00:02]} 59. Rh5 {[%emt 0:00:03]} Bd4 {[%emt 0:00:03]} 60. Rd5 {[%emt 0:00:02]} Be3 {[%emt 0:00:04]} 61. Rb5+ {[%emt 0:00:02]} Ka6 {[%emt 0:00:01]} 62. Re5 {[%emt 0:00:02]} Bd4 {[%emt 0:00:04]} 63. Rd5 {[%emt 0:00:02]} Bb6 {[%emt 0:00:01]} 64. Rh5 {[%emt 0:00:11]} Re6 {[%emt 0:00:03]} 65. Nd2 {[%emt 0:00:08]} Re3+ {[%emt 0:00:01]} 66. Kc2 {[%emt 0:00:05]} Rc3+ {[%emt 0:00:01]} 67. Kb2 {[%emt 0:00:01]} Be3 {[%emt 0:00:03]} 68. Nb3 {[%emt 0:00:03]} Bg5 {[%emt 0:00:21]} 69. Rh2 {[%emt 0:00:10]} Re3 {[%emt 0:00:02]} 70. Rc2 {[%emt 0:00:06]} Kb6 {[%emt 0:00:04]} 71. Rf2 {[%emt 0:00:06]} Re5 {[%emt 0:00:07]} 72. Rf8 {[%emt 0:00:08]} Re2+ {[%emt 0:00:02]} 73. Kb1 {[%emt 0:00:01]} Re5 {[%emt 0:00:11]} 74. Rb8+ {[%emt 0:00:02]} Kc6 {[%emt 0:00:04]} 75. Ra8 {[%emt 0:00:02]} h5 {[%emt 0:00:09]} 76. Nxa5+ {[%emt 0:00:04]} Kd5 {[%emt 0:00:06]} 77. Nb7 {[%emt 0:00:10]} Kc4 {[%emt 0:00:10]} 78. Na5+ {[%emt 0:00:14]} Kd3 {[%emt 0:00:11]} 79. Nc6 {[%emt 0:00:03]} Re4 {[%emt 0:00:03]} 80. a5 {[%emt 0:00:06]} Bf6 {[%emt 0:00:04]} 81. Rf8 {[%emt 0:00:07]} Bc3 {[%emt 0:00:04]} 82. Ka2 {[%emt 0:00:04]} Kc4 {[%emt 0:00:04]} 83. Rf2 {[%emt 0:00:08]} Kb5 {[%emt 0:00:03]} 84. Na7+ {[%emt 0:00:10]} Kxa5 {[%emt 0:00:04]} 85. Nc8 {[%emt 0:00:05]} Re6 {[%emt 0:00:05]} 86. Rf5+ {[%emt 0:00:01]} Ka4 {[%emt 0:00:01]} 87. Rf2 {[%emt 0:00:10]} b3+ {[%emt 0:00:03]} 88. Kb1 {[%emt 0:00:01]} Re1# {[%emt 0:00:02]} 0-1

[Event "Polgar Challenge 2021"]
[Site "Online"]
[Date "2021.04.04"]
[Round "19.1"]
[White "Bjerre, Jonas Buhl"]
[Black "Zhu, Jiner"]
[Result "0-1"]
[ECO "E07"]
[WhiteElo "2550"]
[BlackElo "2459"]
[Annotator "ChessBase"]
[PlyCount "72"]
[EventDate "2021.04.08"]
[EventType "tourn"]
[EventCountry "NET"]
[SourceTitle "playchess.com"]
[Source "ChessBase"]
[SourceQuality "1"]
[TimeControl "600+5"]

1. d4 {[%emt 0:00:00]} Nf6 {[%emt 0:00:00]} 2. c4 {[%emt 0:00:00]} e6 {[%emt 0:00:00]} 3. Nf3 {[%emt 0:00:00]} d5 {[%emt 0:00:00]} 4. g3 {[%emt 0:00:00]} Bb4+ {[%emt 0:00:00]} 5. Bd2 {[%emt 0:00:01]} Be7 {[%emt 0:00:01]} 6. Bg2 {[%emt 0:00:01]} O-O {[%emt 0:00:01]} 7. O-O {[%emt 0:00:01]} c6 {[%emt 0:00:01]} 8. Bf4 {[%emt 0:00:01]} Nbd7 {[%emt 0:00:24]} 9. Nc3 {[%emt 0:00:09]} dxc4 {[%emt 0:00:16]} 10. e4 {[%emt 0:00:03]} a5 {[%emt 0:00:41]} 11. a4 {[%emt 0:00:23]} b5 {[%emt 0:02:07]} 12. axb5 {[%emt 0:01:22]} cxb5 {[%emt 0:00:01]} 13. d5 {[%emt 0:01:10]} exd5 {[%emt 0:02:04]} 14. exd5 {[%emt 0:00:02]} Bc5 {[%emt 0:00:29]} 15. Nxb5 {[%emt 0:00:10]} Qb6 {[%emt 0:00:35]} 16. Nfd4 {[%emt 0:01:20]} Ne8 {[%emt 0:01:14]} 17. d6 {[%emt 0:01:47]} Rb8 {[%emt 0:00:02]} 18. Qd2 {[%emt 0:00:46]} Ba6 {[%emt 0:01:17]} 19. Bc6 {[%emt 0:01:17]} Nef6 {[%emt 0:01:28]} 20. Rxa5 {[%emt 0:00:43]} c3 {[%emt 0:00:16]} 21. Qxc3 {[%emt 0:00:08]} Bxb5 {[%emt 0:00:12]} 22. Rxb5 {[%emt 0:00:33]} Bxd4 {[%emt 0:00:01]} 23. Rxb6 {[%emt 0:01:03]} Bxc3 {[%emt 0:00:03]} 24. Rxb8 {[%emt 0:00:10]} Nxb8 {[%emt 0:00:00]} 25. bxc3 {[%emt 0:00:21]} Nxc6 {[%emt 0:00:01]} 26. c4 {[%emt 0:00:00]} h6 {[%emt 0:00:17]} 27. Ra1 {[%emt 0:00:06]} Rc8 {[%emt 0:00:19]} 28. Ra4 {[%emt 0:00:16]} Kf8 {[%emt 0:00:03]} 29. Ra6 {[%emt 0:00:07]} Ke8 {[%emt 0:00:06]} 30. Rb6 {[%emt 0:00:01]} Nd7 {[%emt 0:00:10]} 31. Rb7 {[%emt 0:00:12]} Na5 {[%emt 0:00:02]} 32. Rb1 {[%emt 0:00:20]} Nxc4 {[%emt 0:00:03]} 33. Re1+ {[%emt 0:00:01]} Kf8 {[%emt 0:00:01]} 34. Re7 {[%emt 0:00:02]} Ncb6 {[%emt 0:00:02]} 35. Be3 {[%emt 0:00:03]} Rc6 {[%emt 0:00:11]} 36. Bxb6 {[%emt 0:00:21]} Nxb6 {[%emt 0:00:01]} 0-1

[Event "Polgar Challenge 2021"]
[Site "Online"]
[Date "2021.04.04"]
[Round "19.2"]
[White "Gukesh D"]
[Black "Shuvalova, Polina"]
[Result "1-0"]
[ECO "D02"]
[WhiteElo "2578"]
[BlackElo "2476"]
[Annotator "ChessBase"]
[PlyCount "101"]
[EventDate "2021.04.08"]
[EventType "tourn"]
[EventCountry "NET"]
[SourceTitle "playchess.com"]
[Source "ChessBase"]
[SourceQuality "1"]
[TimeControl "600+5"]

1. d4 {[%emt 0:00:00]} Nf6 {[%emt 0:00:00]} 2. Nf3 {[%emt 0:00:09]} e6 {[%emt 0:00:00]} 3. Bf4 {[%emt 0:00:02]} d5 {[%emt 0:00:09]} 4. e3 {[%emt 0:00:01]} Bd6 {[%emt 0:00:02]} 5. Nbd2 {[%emt 0:00:03]} O-O {[%emt 0:00:04]} 6. Bd3 {[%emt 0:00:22]} Bxf4 {[%emt 0:00:06]} 7. exf4 {[%emt 0:00:02]} b6 {[%emt 0:00:01]} 8. Qe2 {[%emt 0:00:10]} c5 {[%emt 0:00:05]} 9. c3 {[%emt 0:00:05]} Nc6 {[%emt 0:00:14]} 10. Ne5 {[%emt 0:00:13]} Bb7 {[%emt 0:00:09]} 11. Ndf3 {[%emt 0:00:18]} cxd4 {[%emt 0:00:05]} 12. Nxc6 {[%emt 0:00:03]} Bxc6 {[%emt 0:00:01]} 13. Nxd4 {[%emt 0:00:01]} Rc8 {[%emt 0:00:12]} 14. O-O {[%emt 0:00:10]} Nd7 {[%emt 0:00:49]} 15. Rfe1 {[%emt 0:00:30]} Nc5 {[%emt 0:00:11]} 16. Bc2 {[%emt 0:00:56]} Qf6 {[%emt 0:00:06]} 17. Qg4 {[%emt 0:00:38]} Bd7 {[%emt 0:00:25]} 18. Re3 {[%emt 0:00:39]} h6 {[%emt 0:00:50]} 19. Re5 {[%emt 0:00:24]} Ba4 {[%emt 0:00:11]} 20. b3 {[%emt 0:00:34]} Bd7 {[%emt 0:00:06]} 21. Rae1 {[%emt 0:00:10]} Rfe8 {[%emt 0:01:11]} 22. Qg3 {[%emt 0:00:14]} a5 {[%emt 0:00:41]} 23. h4 {[%emt 0:00:40]} b5 {[%emt 0:00:09]} 24. f5 {[%emt 0:00:58]} exf5 {[%emt 0:01:07]} 25. Rxe8+ {[%emt 0:00:03]} Rxe8 {[%emt 0:00:47]} 26. Rxe8+ {[%emt 0:00:02]} Bxe8 {[%emt 0:00:01]} 27. Qb8 {[%emt 0:00:09]} Kf8 {[%emt 0:00:27]} 28. Nxb5 {[%emt 0:01:14]} Qxh4 {[%emt 0:02:37]} 29. Nc7 {[%emt 0:00:32]} Qe7 {[%emt 0:00:07]} 30. Nxd5 {[%emt 0:00:07]} Qe1+ {[%emt 0:00:14]} 31. Kh2 {[%emt 0:00:01]} Qxf2 {[%emt 0:00:17]} 32. Qd6+ {[%emt 0:00:05]} Kg8 {[%emt 0:00:01]} 33. Bxf5 {[%emt 0:00:14]} Ne4 {[%emt 0:00:38]} 34. Qb8 {[%emt 0:01:10]} Kf8 {[%emt 0:00:13]} 35. Qe5 {[%emt 0:00:22]} Qh4+ {[%emt 0:00:19]} 36. Bh3 {[%emt 0:00:04]} Nf2 {[%emt 0:00:13]} 37. Qd6+ {[%emt 0:01:04]} Kg8 {[%emt 0:00:01]} 38. Qg3 {[%emt 0:00:05]} Qxg3+ {[%emt 0:00:07]} 39. Kxg3 {[%emt 0:00:01]} Nd1 {[%emt 0:00:04]} 40. Bg4 {[%emt 0:00:10]} Nb2 {[%emt 0:00:09]} 41. Be2 {[%emt 0:00:02]} Kf8 {[%emt 0:00:04]} 42. Kf4 {[%emt 0:00:07]} Bc6 {[%emt 0:00:02]} 43. c4 {[%emt 0:00:12]} Ke8 {[%emt 0:00:11]} 44. Ke5 {[%emt 0:00:04]} Kd7 {[%emt 0:00:01]} 45. Kd4 {[%emt 0:00:02]} a4 {[%emt 0:00:01]} 46. Kc3 {[%emt 0:00:04]} a3 {[%emt 0:00:02]} 47. Kb4 {[%emt 0:00:05]} f5 {[%emt 0:00:12]} 48. Kxa3 {[%emt 0:00:02]} Bxd5 {[%emt 0:00:01]} 49. cxd5 {[%emt 0:00:02]} g5 {[%emt 0:00:05]} 50. Kxb2 {[%emt 0:00:02]} g4 {[%emt 0:00:06]} 51. Bd3 {[%emt 0:00:04]} 1-0

[Event "Polgar Challenge 2021"]
[Site "Online"]
[Date "2021.04.04"]
[Round "19.3"]
[White "Keymer, Vincent"]
[Black "Yoo, Christopher Woojin"]
[Result "0-1"]
[ECO "A50"]
[WhiteElo "2591"]
[BlackElo "2455"]
[Annotator "ChessBase"]
[PlyCount "86"]
[EventDate "2021.04.08"]
[EventType "tourn"]
[EventCountry "NET"]
[SourceTitle "playchess.com"]
[Source "ChessBase"]
[SourceQuality "1"]
[TimeControl "600+5"]

1. d4 {[%emt 0:00:00]} Nf6 {[%emt 0:00:00]} 2. c4 {[%emt 0:00:00]} b6 {[%emt 0:00:07]} 3. Nc3 {[%emt 0:00:09]} Bb7 {[%emt 0:00:01]} 4. Qc2 {[%emt 0:00:01]} d5 {[%emt 0:00:02]} 5. cxd5 {[%emt 0:00:01]} Nxd5 {[%emt 0:00:01]} 6. e4 {[%emt 0:00:35]} Nxc3 {[%emt 0:00:03]} 7. bxc3 {[%emt 0:00:00]} e5 {[%emt 0:00:01]} 8. dxe5 {[%emt 0:00:44]} Nd7 {[%emt 0:00:03]} 9. Nf3 {[%emt 0:00:07]} Qe7 {[%emt 0:00:03]} 10. Bb5 {[%emt 0:00:25]} O-O-O {[%emt 0:01:35]} 11. O-O {[%emt 0:00:12]} a6 {[%emt 0:02:20]} 12. Bxd7+ {[%emt 0:01:37]} Qxd7 {[%emt 0:01:13]} 13. Bg5 {[%emt 0:00:01]} Be7 {[%emt 0:00:02]} 14. Rad1 {[%emt 0:00:23]} Qe6 {[%emt 0:00:06]} 15. Bxe7 {[%emt 0:00:35]} Qxe7 {[%emt 0:00:10]} 16. Rd4 {[%emt 0:00:02]} c5 {[%emt 0:01:26]} 17. Rxd8+ {[%emt 0:00:35]} Rxd8 {[%emt 0:00:00]} 18. h3 {[%emt 0:00:22]} h6 {[%emt 0:01:03]} 19. a4 {[%emt 0:01:00]} Bc6 {[%emt 0:00:20]} 20. Rb1 {[%emt 0:00:23]} b5 {[%emt 0:00:10]} 21. axb5 {[%emt 0:00:08]} axb5 {[%emt 0:00:00]} 22. Ra1 {[%emt 0:00:56]} Qb7 {[%emt 0:00:34]} 23. Re1 {[%emt 0:00:43]} Qd7 {[%emt 0:01:09]} 24. Qa2 {[%emt 0:00:18]} Kb8 {[%emt 0:00:02]} 25. Qa3 {[%emt 0:00:58]} Qa7 {[%emt 0:00:18]} 26. Qc1 {[%emt 0:00:01]} Qa2 {[%emt 0:00:12]} 27. Qf4 {[%emt 0:00:21]} Kb7 {[%emt 0:00:02]} 28. Nh4 {[%emt 0:00:52]} Qd2 {[%emt 0:00:43]} 29. Qxd2 {[%emt 0:00:28]} Rxd2 {[%emt 0:00:00]} 30. Nf5 {[%emt 0:00:00]} Kb6 {[%emt 0:00:01]} 31. Nxg7 {[%emt 0:00:07]} b4 {[%emt 0:00:02]} 32. cxb4 {[%emt 0:00:01]} cxb4 {[%emt 0:00:00]} 33. Nf5 {[%emt 0:00:04]} b3 {[%emt 0:00:20]} 34. Nd6 {[%emt 0:00:13]} Bb5 {[%emt 0:00:09]} 35. Re3 {[%emt 0:00:13]} Rd1+ {[%emt 0:00:15]} 36. Kh2 {[%emt 0:00:03]} b2 {[%emt 0:00:00]} 37. Rb3 {[%emt 0:00:01]} b1=Q {[%emt 0:00:02]} 38. Rxb1 {[%emt 0:00:01]} Rxb1 {[%emt 0:00:00]} 39. Nxf7 {[%emt 0:00:01]} h5 {[%emt 0:00:11]} 40. g4 {[%emt 0:00:25]} h4 {[%emt 0:00:06]} 41. g5 {[%emt 0:00:09]} Be2 {[%emt 0:00:11]} 42. Kg2 {[%emt 0:00:06]} Rb3 {[%emt 0:00:02]} 43. f4 {[%emt 0:00:14]} Bf3+ {[%emt 0:00:05]} 0-1